Workbook

Sheet Validation Summary
B2: Authority | D2: =Data!B2 -> Hastings Borough Council | J2: v4
B3: Quarter | D3: =VLOOKUP(Data!C2,Quarter,3,0) -> Oct 20 - Dec 20
B5: Incidents
B7: I0101 | C7: Total number of incidents this period | G7: =SUMIF(Data!$F$2:$F$232,B7,Data!$H$2:$H$232) -> 132
C10: Number of incidents by land type
B12: I0201 | C12: Highway | G12: =SUMIF(Data!$F$2:$F$232,B12,Data!$H$2:$H$232) -> 116 | I12: I0202 | J12: Agriculture | N12: =SUMIF(Data!$F$2:$F$232,I12,Data!$H$2:$H$232) -> 0
B13: I0301 | C13: Footpath / Bridleway | G13: =SUMIF(Data!$F$2:$F$232,B13,Data!$H$2:$H$232) -> 11 | I13: I0302 | J13: Private Residence | N13: =SUMIF(Data!$F$2:$F$232,I13,Data!$H$2:$H$232) -> 0
B14: I0401 | C14: Back Alley | G14: =SUMIF(Data!$F$2:$F$232,B14,Data!$H$2:$H$232) -> 3 | I14: I0402 | J14: Commercial / Industrial | N14: =SUMIF(Data!$F$2:$F$232,I14,Data!$H$2:$H$232) -> 0
B15: I0501 | C15: Railway | G15: =SUMIF(Data!$F$2:$F$232,B15,Data!$H$2:$H$232) -> 0 | I15: I0502 | J15: Water course / bank | N15: =SUMIF(Data!$F$2:$F$232,I15,Data!$H$2:$H$232) -> 0
B16: I0601 | C16: Council Land | G16: =SUMIF(Data!$F$2:$F$232,B16,Data!$H$2:$H$232) -> 1 | I16: I0602 | J16: Other (unidentified) | N16: =SUMIF(Data!$F$2:$F$232,I16,Data!$H$2:$H$232) -> 1
C18: Sum of incidents by land type | G18: =SUM(G12:G16,N12:N16) -> 132 | H18: =IF(G18=G7,"OK","Check") -> OK | J18: =IF(H18="Check","The total number of incidents recorded in this part does not match the total number given in the first part of the incidents section.","") -> 
C21: Number of incidents by primary waste type
B23: I0701 | C23: Animal Carcass | G23: =SUMIF(Data!$F$2:$F$232,B23,Data!$H$2:$H$232) -> 0 | I23: I0702 | J23: Construction / demolition / excavation | N23: =SUMIF(Data!$F$2:$F$232,I23,Data!$H$2:$H$232) -> 8
B24: I0801 | C24: Green | G24: =SUMIF(Data!$F$2:$F$232,B24,Data!$H$2:$H$232) -> 2 | I24: I0802 | J24: Black bags - commercial | N24: =SUMIF(Data!$F$2:$F$232,I24,Data!$H$2:$H$232) -> 0
B25: I0901 | C25: Vehicle Parts | G25: =SUMIF(Data!$F$2:$F$232,B25,Data!$H$2:$H$232) -> 0 | I25: I0902 | J25: Black bags - household | N25: =SUMIF(Data!$F$2:$F$232,I25,Data!$H$2:$H$232) -> 0
B26: I1001 | C26: White goods | G26: =SUMIF(Data!$F$2:$F$232,B26,Data!$H$2:$H$232) -> 11 | I26: I1002 | J26: Chemical drums, oil, fuel | N26: =SUMIF(Data!$F$2:$F$232,I26,Data!$H$2:$H$232) -> 1
B27: I1101 | C27: Other electrical | G27: =SUMIF(Data!$F$2:$F$232,B27,Data!$H$2:$H$232) -> 4 | I27: I1102 | J27: Other household waste | N27: =SUMIF(Data!$F$2:$F$232,I27,Data!$H$2:$H$232) -> 102
B28: I1201 | C28: Tyres | G28: =SUMIF(Data!$F$2:$F$232,B28,Data!$H$2:$H$232) -> 1 | I28: I1202 | J28: Other commercial waste | N28: =SUMIF(Data!$F$2:$F$232,I28,Data!$H$2:$H$232) -> 3
B29: I1301 | C29: Asbestos | G29: =SUMIF(Data!$F$2:$F$232,B29,Data!$H$2:$H$232) -> 0 | I29: I1302 | J29: Other (unidentified) | N29: =SUMIF(Data!$F$2:$F$232,I29,Data!$H$2:$H$232) -> 0
B30: I1401 | C30: Clinical | G30: =SUMIF(Data!$F$2:$F$232,B30,Data!$H$2:$H$232) -> 0
C32: Sum of incidents by primary waste type | G32: =SUM(G23:G30,N23:N29) -> 132 | H32: =IF(G32=G7,"OK","Check") -> OK | J32: =IF(H32="Check","The total number of incidents recorded in this part does not match the total number given in the first part of the incidents section.","") -> 
C35: Number of incidents by size and estimated clearance and disposal cost
G37: Incidents | J37: At (£) each | N37: Total (£)
B39: I1501 | C39: Single black bag | G39: =SUMIF(Data!$F$2:$F$232,B39,Data!$H$2:$H$232) -> 0 | I39: I1502 | J39: =VLOOKUP(I39,Data!$F:$H,3,FALSE) -> £7 | N39: =G39*J39 -> 0
B40: I1601 | C40: Other single item | G40: =SUMIF(Data!$F$2:$F$232,B40,Data!$H$2:$H$232) -> 63 | I40: I1602 | J40: =VLOOKUP(I40,Data!$F:$H,3,FALSE) -> £29 | N40: £1,827
B41: I1701 | C41: Car boot load or less | G41: =SUMIF(Data!$F$2:$F$232,B41,Data!$H$2:$H$232) -> 44 | I41: I1702 | J41: =VLOOKUP(I41,Data!$F:$H,3,FALSE) -> £29 | N41: £1,276
B42: I1801 | C42: Small van load | G42: =SUMIF(Data!$F$2:$F$232,B42,Data!$H$2:$H$232) -> 25 | I42: I1802 | J42: =VLOOKUP(I42,Data!$F:$H,3,FALSE) -> £56 | N42: £1,400
B43: I1901 | C43: Transit van load | G43: =SUMIF(Data!$F$2:$F$232,B43,Data!$H$2:$H$232) -> 0 | I43: I1902 | J43: =VLOOKUP(I43,Data!$F:$H,3,FALSE) -> £115 | N43: 0
B44: I2001 | C44: Tipper lorry load | G44: =SUMIF(Data!$F$2:$F$232,B44,Data!$H$2:$H$232) -> 0 | H44: =IF(OR(AND(G44=0,N44=0),AND(G44>0,N44>0)),"OK","Check") -> OK | I44: I2002 | J44: =IF(H44="Check", "If you have entered an incident or incidents against the tipper lorry load category, you should also enter the associated clearance costs. If the clearance cost is £0.00, please provide a reason.","") ->  | N44: =SUMIF(Data!$F$2:$F$232,I44,Data!$H$2:$H$232) -> 0
B45: I2101 | C45: Significant / multiple loads | G45: =SUMIF(Data!$F$2:$F$232,B45,Data!$H$2:$H$232) -> 0 | H45: OK | I45: I2102 | J45: =IF(H45="Check", "If you have entered an incident or incidents against the significant/multiple loads, you should also enter the associated clearance costs. If the clearance cost is £0.00, please provide a reason.","") ->  | N45: =SUMIF(Data!$F$2:$F$232,I45,Data!$H$2:$H$232) -> 0
C47: Sum of incidents by cost | G47: =SUM(G39:G45) -> 132 | H47: =IF(G47<=G7,"OK","Check") -> OK | J47: =IF(H47="Check",CONCATENATE("The total number of incidents in this section (", G47, ") cannot be more than the total number of incidents given in the first section of your return (", G7, "). Please check these figures."), "") -> 
M49: Estimated Total Cost (£) | N49: =SUM(N39:N45) -> £4,503
B52: Actions Taken
C54: Number and estimated cost of actions taken this period
C56: No actions taken this period? | G56: =IF(H56=1,"ü","") ->  | H56: =SUMIF(Data!$F$2:$F$232,I56,Data!$H$2:$H$232) -> 0 | I56: A2001
G58: Actions | J58: At (£) each | N58: Total (£)
B60: A0101 | C60: Investigation | G60: =SUMIF(Data!$F$2:$F$232,B60,Data!$H$2:$H$232) -> 5 | I60: A0102 | J60: =VLOOKUP(I60,Data!$F:$H,3,FALSE) -> £33 | N60: =G60*J60 -> £165
B61: A0201 | C61: Warning letter | G61: =SUMIF(Data!$F$2:$F$232,B61,Data!$H$2:$H$232) -> 0 | I61: A0202 | J61: =VLOOKUP(I61,Data!$F:$H,3,FALSE) -> £33 | N61: 0
B62: A0301 | C62: Statutory notice | G62: =SUMIF(Data!$F$2:$F$232,B62,Data!$H$2:$H$232) -> 0 | I62: A0302 | J62: =VLOOKUP(I62,Data!$F:$H,3,FALSE) -> £33 | N62: 0
B63: A2101 | C63: Fixed penalty notices issued specifically for fly-tipping (s33Za of the Environmental Protection Act 1990) | G63: =SUMIF(Data!$F$2:$F$232,B63,Data!$H$2:$H$232) -> 0 | I63: A2102 | J63: =VLOOKUP(I63,Data!$F:$H,3,FALSE) -> £33 | N63: 0
B64: A2401 | C64: Fixed penalty notices issued for Household Duty of Care | G64: =SUMIF(Data!$F$2:$F$232,B64,Data!$H$2:$H$232) -> 0 | I64: A2402 | J64: =VLOOKUP(I64,Data!$F:$H,3,FALSE) -> £33 | N64: 0
B65: A2201 | C65: Littering fixed penalty notices issued in conjunction with fly-tipping (s88 of the Environmental Protection Act 1990) | G65: =SUMIF(Data!$F$2:$F$232,B65,Data!$H$2:$H$232) -> 0 | I65: A2202 | J65: =VLOOKUP(I65,Data!$F:$H,3,FALSE) -> £33 | N65: 0
B66: A2301 | C66: All other fixed penalty notices issued | G66: =SUMIF(Data!$F$2:$F$232,B66,Data!$H$2:$H$232) -> 0 | I66: A2302 | J66: =VLOOKUP(I66,Data!$F:$H,3,FALSE) -> £33 | N66: 0
B67: A0501 | C67: Duty of care inspection | G67: =SUMIF(Data!$F$2:$F$232,B67,Data!$H$2:$H$232) -> 0 | I67: A0502 | J67: =VLOOKUP(I67,Data!$F:$H,3,FALSE) -> £33 | N67: 0
B68: A0601 | C68: Stop and search | G68: =SUMIF(Data!$F$2:$F$232,B68,Data!$H$2:$H$232) -> 0 | I68: A0602 | J68: =VLOOKUP(I68,Data!$F:$H,3,FALSE) -> £324 | N68: 0
B69: A0701 | C69: Vehicles seized | G69: =SUMIF(Data!$F$2:$F$232,B69,Data!$H$2:$H$232) -> 0 | H69: =IF(G69<=10,"OK","Check") -> OK | I69: A0702 | J69: =VLOOKUP(I69,Data!$F:$H,3,FALSE) -> £33 | N69: 0
B70: A0801 | C70: Formal caution | G70: =SUMIF(Data!$F$2:$F$232,B70,Data!$H$2:$H$232) -> 0 | I70: A0802 | J70: =VLOOKUP(I70,Data!$F:$H,3,FALSE) -> £33 | N70: 0
B71: A0901 | C71: Prosecution | G71: =SUMIF(Data!$F$2:$F$232,B71,Data!$H$2:$H$232) -> 0 | H71: =IF(OR(AND(G71=0,N71=0),AND(G71>0,N71>0)),"OK","Check") -> OK | I71: A0902 | J71: =IF(H71="Check", "If you have entered actions for the number of prosecutions, you should also enter the associated costs relating to these prosecutions.","") ->  | N71: =SUMIF(Data!$F$2:$F$232,I71,Data!$H$2:$H$232) -> 0
B72: A1001 | C72: Injunction | G72: =SUMIF(Data!$F$2:$F$232,B72,Data!$H$2:$H$232) -> 0 | H72: OK | I72: A1002 | J72: =IF(H72="Check", "If you have entered actions for the number of injunctions, you should also enter the associated costs relating to these injunctions.","") ->  | N72: =SUMIF(Data!$F$2:$F$232,I72,Data!$H$2:$H$232) -> 0
C74: =IF(H69="Check","The number of vehicles seized is high. If you wish to provide any further information about this figure please do so in the Comments box of the data entry section of your online return.","") -> 
M75: Estimated Total Cost (£) | N75: =SUM(N60:N72) -> £165
C76: =IF(G7=0, "CHECK", IF(G60/G7>1.1,"CHECK","OK")) -> OK | E76: =IF(C76="Check","The total number of investigations ("&G60&") is more than 10% greater than the total number of incidents recorded ("&G7&"). We would not usually expect this to be the case. If you are able to provide any further information about this figure please do so in the Comments box of the data entry section of your online return.","") -> 
C80: Number of prosecution outcomes
B82: A1101 | C82: Absolute/conditional discharge | G82: =SUMIF(Data!$F$2:$F$232,B82,Data!$H$2:$H$232) -> 0 | I82: A1102 | J82: Custodial sentence | N82: =SUMIF(Data!$F$2:$F$232,I82,Data!$H$2:$H$232) -> 0
B83: A1201 | C83: Community service | G83: =SUMIF(Data!$F$2:$F$232,B83,Data!$H$2:$H$232) -> 0 | I83: A1202 | J83: Cases Lost | N83: =SUMIF(Data!$F$2:$F$232,I83,Data!$H$2:$H$232) -> 0
B84: A1301 | C84: Fine | G84: =SUMIF(Data!$F$2:$F$232,B84,Data!$H$2:$H$232) -> 0 | I84: A1302 | J84: Other (successful) | N84: =SUMIF(Data!$F$2:$F$232,I84,Data!$H$2:$H$232) -> 0
B85: A1401 | C85: Paid fixed penalty notice | G85: =SUMIF(Data!$F$2:$F$232,B85,Data!$H$2:$H$232) -> 0
C87: =IF(SUM(G82:G84,N82:N84)=G71,"OK","CHECK") -> OK | E87: =IF(C87="Check","The total number of prosecution outcomes (excluding paid fixed penalty notices) is different from the number of prosecutions recorded in the "&""""&"Actions Taken"&""""&" section above. If you are able to provide any further information about this figure please do so in the Comments box of the data entry section of your online return.","") -> 
C90: Number of fines by level (excluding costs and Fixed Penalty Notices) | Q90: Minimum total fines | R90: =0*G92+51*N92+201*G93+501*N93+1001*G94+5001*N94+20001*G95+50001*N95 -> 0
Q91: Maximum total fines | R91: =IF(N95<>0, "Unknown", 50*G92+200*N92+500*G93+1000*N93+5000*G94+20000*N94+50000*G95) -> 0
B92: A1501 | C92: £0 to £50 | G92: =SUMIF(Data!$F$2:$F$232,B92,Data!$H$2:$H$232) -> 0 | I92: A1502 | J92: £51 to £200 | N92: =SUMIF(Data!$F$2:$F$232,I92,Data!$H$2:$H$232) -> 0
B93: A1601 | C93: £201 to £500 | G93: =SUMIF(Data!$F$2:$F$232,B93,Data!$H$2:$H$232) -> 0 | I93: A1602 | J93: £501 to £1,000 | N93: =SUMIF(Data!$F$2:$F$232,I93,Data!$H$2:$H$232) -> 0
B94: A1701 | C94: £1,001 to £5,000 | G94: =SUMIF(Data!$F$2:$F$232,B94,Data!$H$2:$H$232) -> 0 | I94: A1702 | J94: £5,001 to £20,000 | N94: =SUMIF(Data!$F$2:$F$232,I94,Data!$H$2:$H$232) -> 0
B95: A1801 | C95: £20,001 to £50,000 | G95: =SUMIF(Data!$F$2:$F$232,B95,Data!$H$2:$H$232) -> 0 | I95: A1802 | J95: over £50,001 | N95: =SUMIF(Data!$F$2:$F$232,I95,Data!$H$2:$H$232) -> 0
I97: A1901 | J97: Total fines this period (£) | N97: =SUMIF(Data!$F$2:$F$232,I97,Data!$H$2:$H$232) -> 0
C99: =IF(N97>=R90, "OK", "CHECK") -> OK | E99: =IF(C99="Check","The " & """" & "Total fines this period (£)" & """" & " is lower than the minimum total (" &TEXT(R90, "£#,###")&") which results from the number of fines reported in the different levels in this section. Please check these figures. ","") -> 
C101: =IF(N95=0, "OK", IF(N97<=R91, "OK", "CHECK")) -> OK | E101: =IF(C101="Check","The " & """" & "Total fines this period (£)" & """" & " is higher than the maximum total (" &TEXT(R91, "£#,###")&") which results from the number of fines reported in the different levels in this section. Please check these figures. ","") -> 
C103: =IF(AND(SUM(G92:G95,N92:N95,N97)>0.1,SUM(G92:G95,N92:N95)=N97),"CHECK","OK") -> OK | E103: =IF(C103="Check","The total value of fines this period (£) has been reported as the same as the number of fines made. The 'Total fines this period (£)' box should contain the cost of the fines rather than the number of fines made.","") -> 
C105: =IF(AND(SUM(G92:G95,N92:N95)=0,N97>0),"CHECK","OK") -> OK | E105: =IF(C105="Check","A value of fines this period (£"&N97 &") has been recorded. "&"However the number of fines by level recorded is 0? "&"We would expect at least one fine to be recorded by level in order for a monetary value to be recorded.","") -> 
B108: Checks to Historic Data
G110: =D3 -> Oct 20 - Dec 20 | J110: =VLOOKUP('Historic Data'!C2,Quarter,3,0) -> Oct 19 - Dec 19 | X110: Threshold 1 | Y110: Threshold 2
B111: I0101 | C111: Total number of incidents | G111: =SUMIF(Data!$F$2:$F$232,B111,Data!$H$2:$H$232) -> 132 | J111: =SUMIF('Historic Data'!$F$2:$F$232,B111,'Historic Data'!$H$2:$H$232) -> 227 | M111: =IF(AND(ABS(G111-J111)>X111*J111, ABS(G111-J111)>Y111), "CHECK", "OK") -> OK | O111: =IF(M111="Check","The total number of incidents recorded this quarter is somewhat different from the number of incidents in the same quarter of the previous year. "&"If you are able to provide any further information about this figure please do so in the Comments box of the data entry section of your online return.","") ->  | X111: 50% | Y111: 100
C113: Number of incidents by primary waste type
B115: I0701 | C115: Animal Carcass | G115: =SUMIF(Data!$F$2:$F$232,B115,Data!$H$2:$H$232) -> 0 | J115: =SUMIF('Historic Data'!$F$2:$F$232,B115,'Historic Data'!$H$2:$H$232) -> 0 | M115: =IF(AND(ABS(G115-J115)>X115*J115, ABS(G115-J115)>Y115), "CHECK", "OK") -> OK | O115: =IF(M115="Check","If you are able to provide any further information about the change in this figure from the previous year please do so in the Comments box of the data entry section of your online return.","") ->  | X115: 200% | Y115: 40
B116: I0702 | C116: Construction / demolition / excavation | G116: =SUMIF(Data!$F$2:$F$232,B116,Data!$H$2:$H$232) -> 8 | J116: =SUMIF('Historic Data'!$F$2:$F$232,B116,'Historic Data'!$H$2:$H$232) -> 15 | M116: OK | X116: 200% | Y116: 40
B117: I0801 | C117: Green | G117: =SUMIF(Data!$F$2:$F$232,B117,Data!$H$2:$H$232) -> 2 | J117: =SUMIF('Historic Data'!$F$2:$F$232,B117,'Historic Data'!$H$2:$H$232) -> 9 | M117: OK | X117: 200% | Y117: 40
B118: I0802 | C118: Black bags - commercial | G118: =SUMIF(Data!$F$2:$F$232,B118,Data!$H$2:$H$232) -> 0 | J118: =SUMIF('Historic Data'!$F$2:$F$232,B118,'Historic Data'!$H$2:$H$232) -> 2 | M118: OK | X118: 200% | Y118: 40
B119: I0901 | C119: Vehicle Parts | G119: =SUMIF(Data!$F$2:$F$232,B119,Data!$H$2:$H$232) -> 0 | J119: =SUMIF('Historic Data'!$F$2:$F$232,B119,'Historic Data'!$H$2:$H$232) -> 0 | M119: OK | X119: 200% | Y119: 40
B120: I0902 | C120: Black bags - household | G120: =SUMIF(Data!$F$2:$F$232,B120,Data!$H$2:$H$232) -> 0 | J120: =SUMIF('Historic Data'!$F$2:$F$232,B120,'Historic Data'!$H$2:$H$232) -> 13 | M120: OK | X120: 200% | Y120: 40
B121: I1001 | C121: White goods | G121: =SUMIF(Data!$F$2:$F$232,B121,Data!$H$2:$H$232) -> 11 | J121: =SUMIF('Historic Data'!$F$2:$F$232,B121,'Historic Data'!$H$2:$H$232) -> 27 | M121: OK | X121: 200% | Y121: 40
B122: I1002 | C122: Chemical drums, oil, fuel | G122: =SUMIF(Data!$F$2:$F$232,B122,Data!$H$2:$H$232) -> 1 | J122: =SUMIF('Historic Data'!$F$2:$F$232,B122,'Historic Data'!$H$2:$H$232) -> 0 | M122: OK | X122: 200% | Y122: 40
B123: I1101 | C123: Other electrical | G123: =SUMIF(Data!$F$2:$F$232,B123,Data!$H$2:$H$232) -> 4 | J123: =SUMIF('Historic Data'!$F$2:$F$232,B123,'Historic Data'!$H$2:$H$232) -> 36 | M123: OK | X123: 200% | Y123: 40
B124: I1102 | C124: Other household waste | G124: =SUMIF(Data!$F$2:$F$232,B124,Data!$H$2:$H$232) -> 102 | J124: =SUMIF('Historic Data'!$F$2:$F$232,B124,'Historic Data'!$H$2:$H$232) -> 104 | M124: OK | X124: 200% | Y124: 40
B125: I1201 | C125: Tyres | G125: =SUMIF(Data!$F$2:$F$232,B125,Data!$H$2:$H$232) -> 1 | J125: =SUMIF('Historic Data'!$F$2:$F$232,B125,'Historic Data'!$H$2:$H$232) -> 0 | M125: OK | X125: 200% | Y125: 40
B126: I1202 | C126: Other commercial waste | G126: =SUMIF(Data!$F$2:$F$232,B126,Data!$H$2:$H$232) -> 3 | J126: =SUMIF('Historic Data'!$F$2:$F$232,B126,'Historic Data'!$H$2:$H$232) -> 21 | M126: OK | X126: 200% | Y126: 40
B127: I1301 | C127: Asbestos | G127: =SUMIF(Data!$F$2:$F$232,B127,Data!$H$2:$H$232) -> 0 | J127: =SUMIF('Historic Data'!$F$2:$F$232,B127,'Historic Data'!$H$2:$H$232) -> 0 | M127: OK | X127: 200% | Y127: 40
B128: I1302 | C128: Other (unidentified) | G128: =SUMIF(Data!$F$2:$F$232,B128,Data!$H$2:$H$232) -> 0 | J128: =SUMIF('Historic Data'!$F$2:$F$232,B128,'Historic Data'!$H$2:$H$232) -> 0 | M128: OK | X128: 200% | Y128: 40
B129: I1401 | C129: Clinical | G129: =SUMIF(Data!$F$2:$F$232,B129,Data!$H$2:$H$232) -> 0 | J129: =SUMIF('Historic Data'!$F$2:$F$232,B129,'Historic Data'!$H$2:$H$232) -> 0 | M129: OK | X129: 200% | Y129: 40
C131: Number of incidents by land type
B132: I0201 | C132: Highway | G132: =SUMIF(Data!$F$2:$F$232,B132,Data!$H$2:$H$232) -> 116 | J132: =SUMIF('Historic Data'!$F$2:$F$232,B132,'Historic Data'!$H$2:$H$232) -> 227 | M132: =IF(AND(ABS(G132-J132)>X132*J132, ABS(G132-J132)>Y132), "CHECK", "OK") -> OK | O132: =IF(M132="Check","If you are able to provide any further information about the change in this figure from the previous year please do so in the Comments box of the data entry section of your online return.","") ->  | X132: 200% | Y132: 40
B133: I0301 | C133: Footpath / Bridleway | G133: =SUMIF(Data!$F$2:$F$232,B133,Data!$H$2:$H$232) -> 11 | J133: =SUMIF('Historic Data'!$F$2:$F$232,B133,'Historic Data'!$H$2:$H$232) -> 0 | M133: OK | X133: 200% | Y133: 40
B134: I0401 | C134: Back Alley | G134: =SUMIF(Data!$F$2:$F$232,B134,Data!$H$2:$H$232) -> 3 | J134: =SUMIF('Historic Data'!$F$2:$F$232,B134,'Historic Data'!$H$2:$H$232) -> 0 | M134: OK | X134: 200% | Y134: 40
B135: I0501 | C135: Railway | G135: =SUMIF(Data!$F$2:$F$232,B135,Data!$H$2:$H$232) -> 0 | J135: =SUMIF('Historic Data'!$F$2:$F$232,B135,'Historic Data'!$H$2:$H$232) -> 0 | M135: OK | X135: 200% | Y135: 40
B136: I0601 | C136: Council Land | G136: =SUMIF(Data!$F$2:$F$232,B136,Data!$H$2:$H$232) -> 1 | J136: =SUMIF('Historic Data'!$F$2:$F$232,B136,'Historic Data'!$H$2:$H$232) -> 0 | M136: OK | X136: 200% | Y136: 40
B137: I0202 | C137: Agriculture | G137: =SUMIF(Data!$F$2:$F$232,B137,Data!$H$2:$H$232) -> 0 | J137: =SUMIF('Historic Data'!$F$2:$F$232,B137,'Historic Data'!$H$2:$H$232) -> 0 | M137: OK | X137: 200% | Y137: 40
B138: I0302 | C138: Private Residence | G138: =SUMIF(Data!$F$2:$F$232,B138,Data!$H$2:$H$232) -> 0 | J138: =SUMIF('Historic Data'!$F$2:$F$232,B138,'Historic Data'!$H$2:$H$232) -> 0 | M138: OK | X138: 200% | Y138: 40
B139: I0402 | C139: Commercial / Industrial | G139: =SUMIF(Data!$F$2:$F$232,B139,Data!$H$2:$H$232) -> 0 | J139: =SUMIF('Historic Data'!$F$2:$F$232,B139,'Historic Data'!$H$2:$H$232) -> 0 | M139: OK | X139: 200% | Y139: 40
B140: I0502 | C140: Water course / bank | G140: =SUMIF(Data!$F$2:$F$232,B140,Data!$H$2:$H$232) -> 0 | J140: =SUMIF('Historic Data'!$F$2:$F$232,B140,'Historic Data'!$H$2:$H$232) -> 0 | M140: OK | X140: 200% | Y140: 40
B141: I0602 | C141: Other (unidentified) | G141: =SUMIF(Data!$F$2:$F$232,B141,Data!$H$2:$H$232) -> 1 | J141: =SUMIF('Historic Data'!$F$2:$F$232,B141,'Historic Data'!$H$2:$H$232) -> 0 | M141: OK | X141: 200% | Y141: 40
C143: Number of incidents by size
B144: I1501 | C144: Single black bag | G144: =SUMIF(Data!$F$2:$F$232,B144,Data!$H$2:$H$232) -> 0 | J144: =SUMIF('Historic Data'!$F$2:$F$232,B144,'Historic Data'!$H$2:$H$232) -> 0 | M144: =IF(AND(ABS(G144-J144)>X144*J144, ABS(G144-J144)>Y144), "CHECK", "OK") -> OK | O144: =IF(M144="Check","If you are able to provide any further information about the change in this figure from the previous year please do so in the Comments box of the data entry section of your online return.","") ->  | X144: 200% | Y144: 40
B145: I1601 | C145: Other single item | G145: =SUMIF(Data!$F$2:$F$232,B145,Data!$H$2:$H$232) -> 63 | J145: =SUMIF('Historic Data'!$F$2:$F$232,B145,'Historic Data'!$H$2:$H$232) -> 95 | M145: OK | X145: 200% | Y145: 40
B146: I1701 | C146: Car boot load or less | G146: =SUMIF(Data!$F$2:$F$232,B146,Data!$H$2:$H$232) -> 44 | J146: =SUMIF('Historic Data'!$F$2:$F$232,B146,'Historic Data'!$H$2:$H$232) -> 21 | M146: OK | X146: 200% | Y146: 40
B147: I1801 | C147: Small van load | G147: =SUMIF(Data!$F$2:$F$232,B147,Data!$H$2:$H$232) -> 25 | J147: =SUMIF('Historic Data'!$F$2:$F$232,B147,'Historic Data'!$H$2:$H$232) -> 100 | M147: OK | X147: 200% | Y147: 40
B148: I1901 | C148: Transit van load | G148: =SUMIF(Data!$F$2:$F$232,B148,Data!$H$2:$H$232) -> 0 | J148: =SUMIF('Historic Data'!$F$2:$F$232,B148,'Historic Data'!$H$2:$H$232) -> 11 | M148: OK | X148: 200% | Y148: 40
B149: I2001 | C149: Tipper lorry load | G149: =SUMIF(Data!$F$2:$F$232,B149,Data!$H$2:$H$232) -> 0 | J149: =SUMIF('Historic Data'!$F$2:$F$232,B149,'Historic Data'!$H$2:$H$232) -> 0 | M149: OK | X149: 200% | Y149: 40
B150: I2101 | C150: Significant / multiple loads | G150: =SUMIF(Data!$F$2:$F$232,B150,Data!$H$2:$H$232) -> 0 | J150: =SUMIF('Historic Data'!$F$2:$F$232,B150,'Historic Data'!$H$2:$H$232) -> 0 | M150: OK | X150: 200% | Y150: 40
C152: Number of actions
B153: A0101 | C153: Investigation | G153: =SUMIF(Data!$F$2:$F$232,B153,Data!$H$2:$H$232) -> 5 | J153: =SUMIF('Historic Data'!$F$2:$F$232,B153,'Historic Data'!$H$2:$H$232) -> 13 | M153: =IF(AND(ABS(G153-J153)>X153*J153, ABS(G153-J153)>Y153), "CHECK", "OK") -> OK | O153: =IF(M153="Check","If you are able to provide any further information about the change in this figure from the previous year please do so in the Comments box of the data entry section of your online return.","") ->  | X153: 100% | Y153: 50
B154: A0201 | C154: Warning letter | G154: =SUMIF(Data!$F$2:$F$232,B154,Data!$H$2:$H$232) -> 0 | J154: =SUMIF('Historic Data'!$F$2:$F$232,B154,'Historic Data'!$H$2:$H$232) -> 2 | M154: OK | X154: 100% | Y154: 50
B155: A0301 | C155: Statutory notice | G155: =SUMIF(Data!$F$2:$F$232,B155,Data!$H$2:$H$232) -> 0 | J155: =SUMIF('Historic Data'!$F$2:$F$232,B155,'Historic Data'!$H$2:$H$232) -> 0 | M155: OK | X155: 100% | Y155: 25
B156: A0401 | C156: Fixed penalty notice | G156: =SUM(G63:G66) -> 0 | J156: =SUMIF('Historic Data'!$F$2:$F$232,B63,'Historic Data'!$H$2:$H$232)+SUMIF('Historic Data'!$F$2:$F$232,B64,'Historic Data'!$H$2:$H$232)+SUMIF('Historic Data'!$F$2:$F$232,B65,'Historic Data'!$H$2:$H$232)+SUMIF('Historic Data'!$F$2:$F$232,B66,'Historic Data'!$H$2:$H$232) -> 1 | M156: OK | X156: 100% | Y156: 25
B157: A0501 | C157: Duty of care inspection | G157: =SUMIF(Data!$F$2:$F$232,B157,Data!$H$2:$H$232) -> 0 | J157: =SUMIF('Historic Data'!$F$2:$F$232,B157,'Historic Data'!$H$2:$H$232) -> 0 | M157: OK | X157: 100% | Y157: 25
B158: A0601 | C158: Stop and search | G158: =SUMIF(Data!$F$2:$F$232,B158,Data!$H$2:$H$232) -> 0 | J158: =SUMIF('Historic Data'!$F$2:$F$232,B158,'Historic Data'!$H$2:$H$232) -> 0 | M158: OK
B159: A0701 | C159: Vehicles seized | G159: =SUMIF(Data!$F$2:$F$232,B159,Data!$H$2:$H$232) -> 0 | J159: =SUMIF('Historic Data'!$F$2:$F$232,B159,'Historic Data'!$H$2:$H$232) -> 0 | M159: =IF(AND(ABS(G159-J159)>X159*J159, ABS(G159-J159)>Y159), "CHECK", "OK") -> OK | X159: 100% | Y159: 25
B160: A0801 | C160: Formal Caution | G160: =SUMIF(Data!$F$2:$F$232,B160,Data!$H$2:$H$232) -> 0 | J160: =SUMIF('Historic Data'!$F$2:$F$232,B160,'Historic Data'!$H$2:$H$232) -> 0 | M160: OK
B161: A0901 | C161: Prosecution | G161: =SUMIF(Data!$F$2:$F$232,B161,Data!$H$2:$H$232) -> 0 | J161: =SUMIF('Historic Data'!$F$2:$F$232,B161,'Historic Data'!$H$2:$H$232) -> 0 | M161: =IF(AND(ABS(G161-J161)>X161*J161, ABS(G161-J161)>Y161), "CHECK", "OK") -> OK | X161: 25% | Y161: 10
B162: A1001 | C162: Injunction | G162: =SUMIF(Data!$F$2:$F$232,B162,Data!$H$2:$H$232) -> 0 | J162: =SUMIF('Historic Data'!$F$2:$F$232,B162,'Historic Data'!$H$2:$H$232) -> 0 | M162: OK
C164: Number of prosecution outcomes
B166: A1101 | C166: Absolute/conditional discharge | G166: =SUMIF(Data!$F$2:$F$232,B166,Data!$H$2:$H$232) -> 0 | J166: =SUMIF('Historic Data'!$F$2:$F$232,B166,'Historic Data'!$H$2:$H$232) -> 0 | M166: OK | O166: =IF(M166="Check","The Year to year comparison shows that there is more than a 25% difference in the number of incidents with a primary waste type of "&C166&". Can you provide a reason for this?","") -> 
B167: A1201 | C167: Community service | G167: =SUMIF(Data!$F$2:$F$232,B167,Data!$H$2:$H$232) -> 0 | J167: =SUMIF('Historic Data'!$F$2:$F$232,B167,'Historic Data'!$H$2:$H$232) -> 0 | M167: OK
B168: A1301 | C168: Fine | G168: =SUMIF(Data!$F$2:$F$232,B168,Data!$H$2:$H$232) -> 0 | J168: =SUMIF('Historic Data'!$F$2:$F$232,B168,'Historic Data'!$H$2:$H$232) -> 0 | M168: =IF(AND(ABS(G168-J168)>X168*J168, ABS(G168-J168)>Y168), "CHECK", "OK") -> OK | X168: 100% | Y168: 25
B169: A1401 | C169: Paid fixed penalty notice | G169: =SUMIF(Data!$F$2:$F$232,B169,Data!$H$2:$H$232) -> 0 | J169: =SUMIF('Historic Data'!$F$2:$F$232,B169,'Historic Data'!$H$2:$H$232) -> 1 | M169: OK | X169: 100% | Y169: 25
B170: A1102 | C170: Custodial sentence | G170: =SUMIF(Data!$F$2:$F$232,B170,Data!$H$2:$H$232) -> 0 | J170: =SUMIF('Historic Data'!$F$2:$F$232,B170,'Historic Data'!$H$2:$H$232) -> 0 | M170: OK
B171: A1202 | C171: Cases Lost | G171: =SUMIF(Data!$F$2:$F$232,B171,Data!$H$2:$H$232) -> 0 | J171: =SUMIF('Historic Data'!$F$2:$F$232,B171,'Historic Data'!$H$2:$H$232) -> 0 | M171: OK
B172: A1302 | C172: Other (successful) | G172: =SUMIF(Data!$F$2:$F$232,B172,Data!$H$2:$H$232) -> 0 | J172: =SUMIF('Historic Data'!$F$2:$F$232,B172,'Historic Data'!$H$2:$H$232) -> 0 | M172: OK

Sheet Data
A1: AuthorityId | B1: Authority | C1: PeriodId | D1: Period | E1: Section | F1: DataPointId | G1: Item | H1: Value
A2: 27 | B2: Hastings Borough Council | C2: 330 | D2: Oct 20 | E2: Number and estimated cost of actions taken this period | F2: A0101 | G2: Investigation | H2: 1
A3: 27 | B3: Hastings Borough Council | C3: 330 | D3: Oct 20 | E3: Number and estimated cost of actions taken this period | F3: A0102 | G3: Investigation - cost per incident | H3: 33
A4: 27 | B4: Hastings Borough Council | C4: 330 | D4: Oct 20 | E4: Number and estimated cost of actions taken this period | F4: A0202 | G4: Warning letter - cost per incident | H4: 33
A5: 27 | B5: Hastings Borough Council | C5: 330 | D5: Oct 20 | E5: Number and estimated cost of actions taken this period | F5: A0302 | G5: Statutory notice - cost per incident | H5: 33
A6: 27 | B6: Hastings Borough Council | C6: 330 | D6: Oct 20 | E6: Number and estimated cost of actions taken this period | F6: A0402 | G6: Fixed penalty notice - cost per incident | H6: 33
A7: 27 | B7: Hastings Borough Council | C7: 330 | D7: Oct 20 | E7: Number and estimated cost of actions taken this period | F7: A0502 | G7: Duty of care inspection - cost per incident | H7: 33
A8: 27 | B8: Hastings Borough Council | C8: 330 | D8: Oct 20 | E8: Number and estimated cost of actions taken this period | F8: A0602 | G8: Stop and search - cost per incident | H8: 324
A9: 27 | B9: Hastings Borough Council | C9: 330 | D9: Oct 20 | E9: Number and estimated cost of actions taken this period | F9: A0702 | G9: Vehicles seized - cost per incident | H9: 33
A10: 27 | B10: Hastings Borough Council | C10: 330 | D10: Oct 20 | E10: Number and estimated cost of actions taken this period | F10: A0802 | G10: Formal Caution - cost per incident | H10: 33
A11: 27 | B11: Hastings Borough Council | C11: 330 | D11: Oct 20 | E11: Number and estimated cost of actions taken this period | F11: A2001 | G11: No actions taken this period | H11: 0
A12: 27 | B12: Hastings Borough Council | C12: 330 | D12: Oct 20 | E12: Number and estimated cost of actions taken this period | F12: A2102 | G12: Fixed penalty notices issued specifically for fly-tipping (s33Za of the Environmental Protection Act 1990) - cost per incident | H12: 33
A13: 27 | B13: Hastings Borough Council | C13: 330 | D13: Oct 20 | E13: Number and estimated cost of actions taken this period | F13: A2202 | G13: Littering fixed penalty notices issued in conjunction with fly-tipping (s88 of the Environmental Protection Act 1990) - cost per incident | H13: 33
A14: 27 | B14: Hastings Borough Council | C14: 330 | D14: Oct 20 | E14: Number and estimated cost of actions taken this period | F14: A2302 | G14: All other fixed penalty notices issued - cost per incident | H14: 33
A15: 27 | B15: Hastings Borough Council | C15: 330 | D15: Oct 20 | E15: Number and estimated cost of actions taken this period | F15: A2402 | G15: Fixed Penalty Notices issued for Household Duty of Care - cost per incident | H15: 33
A16: 27 | B16: Hastings Borough Council | C16: 330 | D16: Oct 20 | E16: Please select the description that best describes the coverage of your reporting of Fly tipping incidents and actions: | F16: G0101 | G16: General | H16: 1
A17: 27 | B17: Hastings Borough Council | C17: 330 | D17: Oct 20 | E17: Total incidents | F17: I0101 | G17: Total number of incidents this period | H17: 55
A18: 27 | B18: Hastings Borough Council | C18: 330 | D18: Oct 20 | E18: Number of incidents by land type | F18: I0201 | G18: Highway | H18: 46
A19: 27 | B19: Hastings Borough Council | C19: 330 | D19: Oct 20 | E19: Number of incidents by land type | F19: I0301 | G19: Footpath / Bridleway | H19: 4
A20: 27 | B20: Hastings Borough Council | C20: 330 | D20: Oct 20 | E20: Number of incidents by land type | F20: I0401 | G20: Back Alley | H20: 3
A21: 27 | B21: Hastings Borough Council | C21: 330 | D21: Oct 20 | E21: Number of incidents by land type | F21: I0601 | G21: Council Land | H21: 1
A22: 27 | B22: Hastings Borough Council | C22: 330 | D22: Oct 20 | E22: Number of incidents by land type | F22: I0602 | G22: Other (unidentified) | H22: 1
A23: 27 | B23: Hastings Borough Council | C23: 330 | D23: Oct 20 | E23: Number of incidents by primary waste type | F23: I0702 | G23: Construction / demolition / excavation | H23: 3
A24: 27 | B24: Hastings Borough Council | C24: 330 | D24: Oct 20 | E24: Number of incidents by primary waste type | F24: I0801 | G24: Green | H24: 2
A25: 27 | B25: Hastings Borough Council | C25: 330 | D25: Oct 20 | E25: Number of incidents by primary waste type | F25: I1001 | G25: White goods | H25: 4
A26: 27 | B26: Hastings Borough Council | C26: 330 | D26: Oct 20 | E26: Number of incidents by primary waste type | F26: I1002 | G26: Chemical drums, oil, fuel | H26: 1
A27: 27 | B27: Hastings Borough Council | C27: 330 | D27: Oct 20 | E27: Number of incidents by primary waste type | F27: I1101 | G27: Other electrical | H27: 2
A28: 27 | B28: Hastings Borough Council | C28: 330 | D28: Oct 20 | E28: Number of incidents by primary waste type | F28: I1102 | G28: Other household waste | H28: 41
A29: 27 | B29: Hastings Borough Council | C29: 330 | D29: Oct 20 | E29: Number of incidents by primary waste type | F29: I1202 | G29: Other commercial waste | H29: 2
A30: 27 | B30: Hastings Borough Council | C30: 330 | D30: Oct 20 | E30: Number of incidents by size and estimated clearance and disposal | F30: I1502 | G30: Single black bag - cost per incident | H30: 7
A31: 27 | B31: Hastings Borough Council | C31: 330 | D31: Oct 20 | E31: Number of incidents by size and estimated clearance and disposal | F31: I1601 | G31: Other single item | H31: 29
A32: 27 | B32: Hastings Borough Council | C32: 330 | D32: Oct 20 | E32: Number of incidents by size and estimated clearance and disposal | F32: I1602 | G32: Other single item - cost per incident | H32: 29
A33: 27 | B33: Hastings Borough Council | C33: 330 | D33: Oct 20 | E33: Number of incidents by size and estimated clearance and disposal | F33: I1701 | G33: Car boot load or less | H33: 20
A34: 27 | B34: Hastings Borough Council | C34: 330 | D34: Oct 20 | E34: Number of incidents by size and estimated clearance and disposal | F34: I1702 | G34: Car boot load or less - cost per incident | H34: 29
A35: 27 | B35: Hastings Borough Council | C35: 330 | D35: Oct 20 | E35: Number of incidents by size and estimated clearance and disposal | F35: I1801 | G35: Small van load | H35: 6
A36: 27 | B36: Hastings Borough Council | C36: 330 | D36: Oct 20 | E36: Number of incidents by size and estimated clearance and disposal | F36: I1802 | G36: Small van load - cost per incident | H36: 56
A37: 27 | B37: Hastings Borough Council | C37: 330 | D37: Oct 20 | E37: Number of incidents by size and estimated clearance and disposal | F37: I1902 | G37: Transit van load - cost per incident | H37: 115
A38: 27 | B38: Hastings Borough Council | C38: 331 | D38: Nov 20 | E38: Number and estimated cost of actions taken this period | F38: A0101 | G38: Investigation | H38: 1
A39: 27 | B39: Hastings Borough Council | C39: 331 | D39: Nov 20 | E39: Number and estimated cost of actions taken this period | F39: A0102 | G39: Investigation - cost per incident | H39: 33
A40: 27 | B40: Hastings Borough Council | C40: 331 | D40: Nov 20 | E40: Number and estimated cost of actions taken this period | F40: A0202 | G40: Warning letter - cost per incident | H40: 33
A41: 27 | B41: Hastings Borough Council | C41: 331 | D41: Nov 20 | E41: Number and estimated cost of actions taken this period | F41: A0302 | G41: Statutory notice - cost per incident | H41: 33
A42: 27 | B42: Hastings Borough Council | C42: 331 | D42: Nov 20 | E42: Number and estimated cost of actions taken this period | F42: A0402 | G42: Fixed penalty notice - cost per incident | H42: 33
A43: 27 | B43: Hastings Borough Council | C43: 331 | D43: Nov 20 | E43: Number and estimated cost of actions taken this period | F43: A0502 | G43: Duty of care inspection - cost per incident | H43: 33
A44: 27 | B44: Hastings Borough Council | C44: 331 | D44: Nov 20 | E44: Number and estimated cost of actions taken this period | F44: A0602 | G44: Stop and search - cost per incident | H44: 324
A45: 27 | B45: Hastings Borough Council | C45: 331 | D45: Nov 20 | E45: Number and estimated cost of actions taken this period | F45: A0702 | G45: Vehicles seized - cost per incident | H45: 33
A46: 27 | B46: Hastings Borough Council | C46: 331 | D46: Nov 20 | E46: Number and estimated cost of actions taken this period | F46: A0802 | G46: Formal Caution - cost per incident | H46: 33
A47: 27 | B47: Hastings Borough Council | C47: 331 | D47: Nov 20 | E47: Number and estimated cost of actions taken this period | F47: A2001 | G47: No actions taken this period | H47: 0
A48: 27 | B48: Hastings Borough Council | C48: 331 | D48: Nov 20 | E48: Number and estimated cost of actions taken this period | F48: A2102 | G48: Fixed penalty notices issued specifically for fly-tipping (s33Za of the Environmental Protection Act 1990) - cost per incident | H48: 33
A49: 27 | B49: Hastings Borough Council | C49: 331 | D49: Nov 20 | E49: Number and estimated cost of actions taken this period | F49: A2202 | G49: Littering fixed penalty notices issued in conjunction with fly-tipping (s88 of the Environmental Protection Act 1990) - cost per incident | H49: 33
A50: 27 | B50: Hastings Borough Council | C50: 331 | D50: Nov 20 | E50: Number and estimated cost of actions taken this period | F50: A2302 | G50: All other fixed penalty notices issued - cost per incident | H50: 33
A51: 27 | B51: Hastings Borough Council | C51: 331 | D51: Nov 20 | E51: Number and estimated cost of actions taken this period | F51: A2402 | G51: Fixed Penalty Notices issued for Household Duty of Care - cost per incident | H51: 33
A52: 27 | B52: Hastings Borough Council | C52: 331 | D52: Nov 20 | E52: Please select the description that best describes the coverage of your reporting of Fly tipping incidents and actions: | F52: G0101 | G52: General | H52: 1
A53: 27 | B53: Hastings Borough Council | C53: 331 | D53: Nov 20 | E53: Total incidents | F53: I0101 | G53: Total number of incidents this period | H53: 25
A54: 27 | B54: Hastings Borough Council | C54: 331 | D54: Nov 20 | E54: Number of incidents by land type | F54: I0201 | G54: Highway | H54: 23
A55: 27 | B55: Hastings Borough Council | C55: 331 | D55: Nov 20 | E55: Number of incidents by land type | F55: I0301 | G55: Footpath / Bridleway | H55: 2
A56: 27 | B56: Hastings Borough Council | C56: 331 | D56: Nov 20 | E56: Number of incidents by primary waste type | F56: I0702 | G56: Construction / demolition / excavation | H56: 3
A57: 27 | B57: Hastings Borough Council | C57: 331 | D57: Nov 20 | E57: Number of incidents by primary waste type | F57: I1001 | G57: White goods | H57: 3
A58: 27 | B58: Hastings Borough Council | C58: 331 | D58: Nov 20 | E58: Number of incidents by primary waste type | F58: I1102 | G58: Other household waste | H58: 17
A59: 27 | B59: Hastings Borough Council | C59: 331 | D59: Nov 20 | E59: Number of incidents by primary waste type | F59: I1201 | G59: Tyres | H59: 1
A60: 27 | B60: Hastings Borough Council | C60: 331 | D60: Nov 20 | E60: Number of incidents by primary waste type | F60: I1202 | G60: Other commercial waste | H60: 1
A61: 27 | B61: Hastings Borough Council | C61: 331 | D61: Nov 20 | E61: Number of incidents by size and estimated clearance and disposal | F61: I1502 | G61: Single black bag - cost per incident | H61: 7
A62: 27 | B62: Hastings Borough Council | C62: 331 | D62: Nov 20 | E62: Number of incidents by size and estimated clearance and disposal | F62: I1601 | G62: Other single item | H62: 16
A63: 27 | B63: Hastings Borough Council | C63: 331 | D63: Nov 20 | E63: Number of incidents by size and estimated clearance and disposal | F63: I1602 | G63: Other single item - cost per incident | H63: 29
A64: 27 | B64: Hastings Borough Council | C64: 331 | D64: Nov 20 | E64: Number of incidents by size and estimated clearance and disposal | F64: I1701 | G64: Car boot load or less | H64: 5
A65: 27 | B65: Hastings Borough Council | C65: 331 | D65: Nov 20 | E65: Number of incidents by size and estimated clearance and disposal | F65: I1702 | G65: Car boot load or less - cost per incident | H65: 29
A66: 27 | B66: Hastings Borough Council | C66: 331 | D66: Nov 20 | E66: Number of incidents by size and estimated clearance and disposal | F66: I1801 | G66: Small van load | H66: 4
A67: 27 | B67: Hastings Borough Council | C67: 331 | D67: Nov 20 | E67: Number of incidents by size and estimated clearance and disposal | F67: I1802 | G67: Small van load - cost per incident | H67: 56
A68: 27 | B68: Hastings Borough Council | C68: 331 | D68: Nov 20 | E68: Number of incidents by size and estimated clearance and disposal | F68: I1902 | G68: Transit van load - cost per incident | H68: 115
A69: 27 | B69: Hastings Borough Council | C69: 332 | D69: Dec 20 | E69: Number and estimated cost of actions taken this period | F69: A0101 | G69: Investigation | H69: 3
A70: 27 | B70: Hastings Borough Council | C70: 332 | D70: Dec 20 | E70: Number and estimated cost of actions taken this period | F70: A0102 | G70: Investigation - cost per incident | H70: 33
A71: 27 | B71: Hastings Borough Council | C71: 332 | D71: Dec 20 | E71: Number and estimated cost of actions taken this period | F71: A0202 | G71: Warning letter - cost per incident | H71: 33
A72: 27 | B72: Hastings Borough Council | C72: 332 | D72: Dec 20 | E72: Number and estimated cost of actions taken this period | F72: A0302 | G72: Statutory notice - cost per incident | H72: 33
A73: 27 | B73: Hastings Borough Council | C73: 332 | D73: Dec 20 | E73: Number and estimated cost of actions taken this period | F73: A0402 | G73: Fixed penalty notice - cost per incident | H73: 33
A74: 27 | B74: Hastings Borough Council | C74: 332 | D74: Dec 20 | E74: Number and estimated cost of actions taken this period | F74: A0502 | G74: Duty of care inspection - cost per incident | H74: 33
A75: 27 | B75: Hastings Borough Council | C75: 332 | D75: Dec 20 | E75: Number and estimated cost of actions taken this period | F75: A0602 | G75: Stop and search - cost per incident | H75: 324
A76: 27 | B76: Hastings Borough Council | C76: 332 | D76: Dec 20 | E76: Number and estimated cost of actions taken this period | F76: A0702 | G76: Vehicles seized - cost per incident | H76: 33
A77: 27 | B77: Hastings Borough Council | C77: 332 | D77: Dec 20 | E77: Number and estimated cost of actions taken this period | F77: A0802 | G77: Formal Caution - cost per incident | H77: 33
A78: 27 | B78: Hastings Borough Council | C78: 332 | D78: Dec 20 | E78: Number and estimated cost of actions taken this period | F78: A2001 | G78: No actions taken this period | H78: 0
A79: 27 | B79: Hastings Borough Council | C79: 332 | D79: Dec 20 | E79: Number and estimated cost of actions taken this period | F79: A2102 | G79: Fixed penalty notices issued specifically for fly-tipping (s33Za of the Environmental Protection Act 1990) - cost per incident | H79: 33
A80: 27 | B80: Hastings Borough Council | C80: 332 | D80: Dec 20 | E80: Number and estimated cost of actions taken this period | F80: A2202 | G80: Littering fixed penalty notices issued in conjunction with fly-tipping (s88 of the Environmental Protection Act 1990) - cost per incident | H80: 33
A81: 27 | B81: Hastings Borough Council | C81: 332 | D81: Dec 20 | E81: Number and estimated cost of actions taken this period | F81: A2302 | G81: All other fixed penalty notices issued - cost per incident | H81: 33
A82: 27 | B82: Hastings Borough Council | C82: 332 | D82: Dec 20 | E82: Number and estimated cost of actions taken this period | F82: A2402 | G82: Fixed Penalty Notices issued for Household Duty of Care - cost per incident | H82: 33
A83: 27 | B83: Hastings Borough Council | C83: 332 | D83: Dec 20 | E83: Please select the description that best describes the coverage of your reporting of Fly tipping incidents and actions: | F83: G0101 | G83: General | H83: 1
A84: 27 | B84: Hastings Borough Council | C84: 332 | D84: Dec 20 | E84: Total incidents | F84: I0101 | G84: Total number of incidents this period | H84: 52
A85: 27 | B85: Hastings Borough Council | C85: 332 | D85: Dec 20 | E85: Number of incidents by land type | F85: I0201 | G85: Highway | H85: 47
A86: 27 | B86: Hastings Borough Council | C86: 332 | D86: Dec 20 | E86: Number of incidents by land type | F86: I0301 | G86: Footpath / Bridleway | H86: 5
A87: 27 | B87: Hastings Borough Council | C87: 332 | D87: Dec 20 | E87: Number of incidents by primary waste type | F87: I0702 | G87: Construction / demolition / excavation | H87: 2
A88: 27 | B88: Hastings Borough Council | C88: 332 | D88: Dec 20 | E88: Number of incidents by primary waste type | F88: I1001 | G88: White goods | H88: 4
A89: 27 | B89: Hastings Borough Council | C89: 332 | D89: Dec 20 | E89: Number of incidents by primary waste type | F89: I1101 | G89: Other electrical | H89: 2
A90: 27 | B90: Hastings Borough Council | C90: 332 | D90: Dec 20 | E90: Number of incidents by primary waste type | F90: I1102 | G90: Other household waste | H90: 44
A91: 27 | B91: Hastings Borough Council | C91: 332 | D91: Dec 20 | E91: Number of incidents by size and estimated clearance and disposal | F91: I1502 | G91: Single black bag - cost per incident | H91: 7
A92: 27 | B92: Hastings Borough Council | C92: 332 | D92: Dec 20 | E92: Number of incidents by size and estimated clearance and disposal | F92: I1601 | G92: Other single item | H92: 18
A93: 27 | B93: Hastings Borough Council | C93: 332 | D93: Dec 20 | E93: Number of incidents by size and estimated clearance and disposal | F93: I1602 | G93: Other single item - cost per incident | H93: 29
A94: 27 | B94: Hastings Borough Council | C94: 332 | D94: Dec 20 | E94: Number of incidents by size and estimated clearance and disposal | F94: I1701 | G94: Car boot load or less | H94: 19
A95: 27 | B95: Hastings Borough Council | C95: 332 | D95: Dec 20 | E95: Number of incidents by size and estimated clearance and disposal | F95: I1702 | G95: Car boot load or less - cost per incident | H95: 29
A96: 27 | B96: Hastings Borough Council | C96: 332 | D96: Dec 20 | E96: Number of incidents by size and estimated clearance and disposal | F96: I1801 | G96: Small van load | H96: 15
A97: 27 | B97: Hastings Borough Council | C97: 332 | D97: Dec 20 | E97: Number of incidents by size and estimated clearance and disposal | F97: I1802 | G97: Small van load - cost per incident | H97: 56
A98: 27 | B98: Hastings Borough Council | C98: 332 | D98: Dec 20 | E98: Number of incidents by size and estimated clearance and disposal | F98: I1902 | G98: Transit van load - cost per incident | H98: 115

Sheet Historic Data
A1: AuthorityId | B1: Authority | C1: PeriodId | D1: Period | E1: Section | F1: DataPointId | G1: Item | H1: Value
A2: 27 | B2: Hastings Borough Council | C2: 312 | D2: Oct 19 | E2: Number and estimated cost of actions taken this period | F2: A0101 | G2: Investigation | H2: 6
A3: 27 | B3: Hastings Borough Council | C3: 312 | D3: Oct 19 | E3: Number and estimated cost of actions taken this period | F3: A0102 | G3: Investigation - cost per incident | H3: 33
A4: 27 | B4: Hastings Borough Council | C4: 312 | D4: Oct 19 | E4: Number and estimated cost of actions taken this period | F4: A0201 | G4: Warning letter | H4: 1
A5: 27 | B5: Hastings Borough Council | C5: 312 | D5: Oct 19 | E5: Number and estimated cost of actions taken this period | F5: A0202 | G5: Warning letter - cost per incident | H5: 33
A6: 27 | B6: Hastings Borough Council | C6: 312 | D6: Oct 19 | E6: Number and estimated cost of actions taken this period | F6: A0302 | G6: Statutory notice - cost per incident | H6: 33
A7: 27 | B7: Hastings Borough Council | C7: 312 | D7: Oct 19 | E7: Number and estimated cost of actions taken this period | F7: A0402 | G7: Fixed penalty notice - cost per incident | H7: 33
A8: 27 | B8: Hastings Borough Council | C8: 312 | D8: Oct 19 | E8: Number and estimated cost of actions taken this period | F8: A0502 | G8: Duty of care inspection - cost per incident | H8: 33
A9: 27 | B9: Hastings Borough Council | C9: 312 | D9: Oct 19 | E9: Number and estimated cost of actions taken this period | F9: A0602 | G9: Stop and search - cost per incident | H9: 324
A10: 27 | B10: Hastings Borough Council | C10: 312 | D10: Oct 19 | E10: Number and estimated cost of actions taken this period | F10: A0702 | G10: Vehicles seized - cost per incident | H10: 33
A11: 27 | B11: Hastings Borough Council | C11: 312 | D11: Oct 19 | E11: Number and estimated cost of actions taken this period | F11: A0802 | G11: Formal Caution - cost per incident | H11: 33
A12: 27 | B12: Hastings Borough Council | C12: 312 | D12: Oct 19 | E12: Number of prosecution outcomes | F12: A1301 | G12: Fine | H12: 0
A13: 27 | B13: Hastings Borough Council | C13: 312 | D13: Oct 19 | E13: Number of prosecution outcomes | F13: A1401 | G13: Paid fixed penalty notice | H13: 1
A14: 27 | B14: Hastings Borough Council | C14: 312 | D14: Oct 19 | E14: Number and estimated cost of actions taken this period | F14: A2001 | G14: No actions taken this period | H14: 0
A15: 27 | B15: Hastings Borough Council | C15: 312 | D15: Oct 19 | E15: Number and estimated cost of actions taken this period | F15: A2101 | G15: Fixed penalty notices issued specifically for fly-tipping (s33Za of the Environmental Protection Act 1990) | H15: 1
A16: 27 | B16: Hastings Borough Council | C16: 312 | D16: Oct 19 | E16: Number and estimated cost of actions taken this period | F16: A2102 | G16: Fixed penalty notices issued specifically for fly-tipping (s33Za of the Environmental Protection Act 1990) - cost per incident | H16: 33
A17: 27 | B17: Hastings Borough Council | C17: 312 | D17: Oct 19 | E17: Number and estimated cost of actions taken this period | F17: A2202 | G17: Littering fixed penalty notices issued in conjunction with fly-tipping (s88 of the Environmental Protection Act 1990) - cost per incident | H17: 33
A18: 27 | B18: Hastings Borough Council | C18: 312 | D18: Oct 19 | E18: Number and estimated cost of actions taken this period | F18: A2302 | G18: All other fixed penalty notices issued - cost per incident | H18: 33
A19: 27 | B19: Hastings Borough Council | C19: 312 | D19: Oct 19 | E19: Number and estimated cost of actions taken this period | F19: A2402 | G19: Fixed Penalty Notices issued for Household Duty of Care - cost per incident | H19: 33
A20: 27 | B20: Hastings Borough Council | C20: 312 | D20: Oct 19 | E20: Please select the description that best describes the coverage of your reporting of Fly tipping incidents and actions: | F20: G0101 | G20: General | H20: 1
A21: 27 | B21: Hastings Borough Council | C21: 312 | D21: Oct 19 | E21: Total incidents | F21: I0101 | G21: Total number of incidents this period | H21: 71
A22: 27 | B22: Hastings Borough Council | C22: 312 | D22: Oct 19 | E22: Number of incidents by land type | F22: I0201 | G22: Highway | H22: 71
A23: 27 | B23: Hastings Borough Council | C23: 312 | D23: Oct 19 | E23: Number of incidents by primary waste type | F23: I0702 | G23: Construction / demolition / excavation | H23: 5
A24: 27 | B24: Hastings Borough Council | C24: 312 | D24: Oct 19 | E24: Number of incidents by primary waste type | F24: I0801 | G24: Green | H24: 3
A25: 27 | B25: Hastings Borough Council | C25: 312 | D25: Oct 19 | E25: Number of incidents by primary waste type | F25: I0902 | G25: Black bags - household | H25: 13
A26: 27 | B26: Hastings Borough Council | C26: 312 | D26: Oct 19 | E26: Number of incidents by primary waste type | F26: I1001 | G26: White goods | H26: 3
A27: 27 | B27: Hastings Borough Council | C27: 312 | D27: Oct 19 | E27: Number of incidents by primary waste type | F27: I1101 | G27: Other electrical | H27: 11
A28: 27 | B28: Hastings Borough Council | C28: 312 | D28: Oct 19 | E28: Number of incidents by primary waste type | F28: I1102 | G28: Other household waste | H28: 29
A29: 27 | B29: Hastings Borough Council | C29: 312 | D29: Oct 19 | E29: Number of incidents by primary waste type | F29: I1202 | G29: Other commercial waste | H29: 7
A30: 27 | B30: Hastings Borough Council | C30: 312 | D30: Oct 19 | E30: Number of incidents by size and estimated clearance and disposal | F30: I1502 | G30: Single black bag - cost per incident | H30: 7
A31: 27 | B31: Hastings Borough Council | C31: 312 | D31: Oct 19 | E31: Number of incidents by size and estimated clearance and disposal | F31: I1601 | G31: Other single item | H31: 22
A32: 27 | B32: Hastings Borough Council | C32: 312 | D32: Oct 19 | E32: Number of incidents by size and estimated clearance and disposal | F32: I1602 | G32: Other single item - cost per incident | H32: 29
A33: 27 | B33: Hastings Borough Council | C33: 312 | D33: Oct 19 | E33: Number of incidents by size and estimated clearance and disposal | F33: I1701 | G33: Car boot load or less | H33: 7
A34: 27 | B34: Hastings Borough Council | C34: 312 | D34: Oct 19 | E34: Number of incidents by size and estimated clearance and disposal | F34: I1702 | G34: Car boot load or less - cost per incident | H34: 29
A35: 27 | B35: Hastings Borough Council | C35: 312 | D35: Oct 19 | E35: Number of incidents by size and estimated clearance and disposal | F35: I1801 | G35: Small van load | H35: 39
A36: 27 | B36: Hastings Borough Council | C36: 312 | D36: Oct 19 | E36: Number of incidents by size and estimated clearance and disposal | F36: I1802 | G36: Small van load - cost per incident | H36: 56
A37: 27 | B37: Hastings Borough Council | C37: 312 | D37: Oct 19 | E37: Number of incidents by size and estimated clearance and disposal | F37: I1901 | G37: Transit van load | H37: 3
A38: 27 | B38: Hastings Borough Council | C38: 312 | D38: Oct 19 | E38: Number of incidents by size and estimated clearance and disposal | F38: I1902 | G38: Transit van load - cost per incident | H38: 115
A39: 27 | B39: Hastings Borough Council | C39: 313 | D39: Nov 19 | E39: Number and estimated cost of actions taken this period | F39: A0101 | G39: Investigation | H39: 4
A40: 27 | B40: Hastings Borough Council | C40: 313 | D40: Nov 19 | E40: Number and estimated cost of actions taken this period | F40: A0102 | G40: Investigation - cost per incident | H40: 33
A41: 27 | B41: Hastings Borough Council | C41: 313 | D41: Nov 19 | E41: Number and estimated cost of actions taken this period | F41: A0201 | G41: Warning letter | H41: 1
A42: 27 | B42: Hastings Borough Council | C42: 313 | D42: Nov 19 | E42: Number and estimated cost of actions taken this period | F42: A0202 | G42: Warning letter - cost per incident | H42: 33
A43: 27 | B43: Hastings Borough Council | C43: 313 | D43: Nov 19 | E43: Number and estimated cost of actions taken this period | F43: A0302 | G43: Statutory notice - cost per incident | H43: 33
A44: 27 | B44: Hastings Borough Council | C44: 313 | D44: Nov 19 | E44: Number and estimated cost of actions taken this period | F44: A0402 | G44: Fixed penalty notice - cost per incident | H44: 33
A45: 27 | B45: Hastings Borough Council | C45: 313 | D45: Nov 19 | E45: Number and estimated cost of actions taken this period | F45: A0502 | G45: Duty of care inspection - cost per incident | H45: 33
A46: 27 | B46: Hastings Borough Council | C46: 313 | D46: Nov 19 | E46: Number and estimated cost of actions taken this period | F46: A0602 | G46: Stop and search - cost per incident | H46: 324
A47: 27 | B47: Hastings Borough Council | C47: 313 | D47: Nov 19 | E47: Number and estimated cost of actions taken this period | F47: A0702 | G47: Vehicles seized - cost per incident | H47: 33
A48: 27 | B48: Hastings Borough Council | C48: 313 | D48: Nov 19 | E48: Number and estimated cost of actions taken this period | F48: A0802 | G48: Formal Caution - cost per incident | H48: 33
A49: 27 | B49: Hastings Borough Council | C49: 313 | D49: Nov 19 | E49: Number and estimated cost of actions taken this period | F49: A2001 | G49: No actions taken this period | H49: 0
A50: 27 | B50: Hastings Borough Council | C50: 313 | D50: Nov 19 | E50: Number and estimated cost of actions taken this period | F50: A2102 | G50: Fixed penalty notices issued specifically for fly-tipping (s33Za of the Environmental Protection Act 1990) - cost per incident | H50: 33
A51: 27 | B51: Hastings Borough Council | C51: 313 | D51: Nov 19 | E51: Number and estimated cost of actions taken this period | F51: A2202 | G51: Littering fixed penalty notices issued in conjunction with fly-tipping (s88 of the Environmental Protection Act 1990) - cost per incident | H51: 33
A52: 27 | B52: Hastings Borough Council | C52: 313 | D52: Nov 19 | E52: Number and estimated cost of actions taken this period | F52: A2302 | G52: All other fixed penalty notices issued - cost per incident | H52: 33
A53: 27 | B53: Hastings Borough Council | C53: 313 | D53: Nov 19 | E53: Number and estimated cost of actions taken this period | F53: A2402 | G53: Fixed Penalty Notices issued for Household Duty of Care - cost per incident | H53: 33
A54: 27 | B54: Hastings Borough Council | C54: 313 | D54: Nov 19 | E54: Please select the description that best describes the coverage of your reporting of Fly tipping incidents and actions: | F54: G0101 | G54: General | H54: 1
A55: 27 | B55: Hastings Borough Council | C55: 313 | D55: Nov 19 | E55: Total incidents | F55: I0101 | G55: Total number of incidents this period | H55: 84
A56: 27 | B56: Hastings Borough Council | C56: 313 | D56: Nov 19 | E56: Number of incidents by land type | F56: I0201 | G56: Highway | H56: 84
A57: 27 | B57: Hastings Borough Council | C57: 313 | D57: Nov 19 | E57: Number of incidents by primary waste type | F57: I0702 | G57: Construction / demolition / excavation | H57: 5
A58: 27 | B58: Hastings Borough Council | C58: 313 | D58: Nov 19 | E58: Number of incidents by primary waste type | F58: I0801 | G58: Green | H58: 3
A59: 27 | B59: Hastings Borough Council | C59: 313 | D59: Nov 19 | E59: Number of incidents by primary waste type | F59: I1001 | G59: White goods | H59: 12
A60: 27 | B60: Hastings Borough Council | C60: 313 | D60: Nov 19 | E60: Number of incidents by primary waste type | F60: I1101 | G60: Other electrical | H60: 12
A61: 27 | B61: Hastings Borough Council | C61: 313 | D61: Nov 19 | E61: Number of incidents by primary waste type | F61: I1102 | G61: Other household waste | H61: 45
A62: 27 | B62: Hastings Borough Council | C62: 313 | D62: Nov 19 | E62: Number of incidents by primary waste type | F62: I1202 | G62: Other commercial waste | H62: 7
A63: 27 | B63: Hastings Borough Council | C63: 313 | D63: Nov 19 | E63: Number of incidents by size and estimated clearance and disposal | F63: I1502 | G63: Single black bag - cost per incident | H63: 7
A64: 27 | B64: Hastings Borough Council | C64: 313 | D64: Nov 19 | E64: Number of incidents by size and estimated clearance and disposal | F64: I1601 | G64: Other single item | H64: 41
A65: 27 | B65: Hastings Borough Council | C65: 313 | D65: Nov 19 | E65: Number of incidents by size and estimated clearance and disposal | F65: I1602 | G65: Other single item - cost per incident | H65: 29
A66: 27 | B66: Hastings Borough Council | C66: 313 | D66: Nov 19 | E66: Number of incidents by size and estimated clearance and disposal | F66: I1701 | G66: Car boot load or less | H66: 7
A67: 27 | B67: Hastings Borough Council | C67: 313 | D67: Nov 19 | E67: Number of incidents by size and estimated clearance and disposal | F67: I1702 | G67: Car boot load or less - cost per incident | H67: 29
A68: 27 | B68: Hastings Borough Council | C68: 313 | D68: Nov 19 | E68: Number of incidents by size and estimated clearance and disposal | F68: I1801 | G68: Small van load | H68: 34
A69: 27 | B69: Hastings Borough Council | C69: 313 | D69: Nov 19 | E69: Number of incidents by size and estimated clearance and disposal | F69: I1802 | G69: Small van load - cost per incident | H69: 56
A70: 27 | B70: Hastings Borough Council | C70: 313 | D70: Nov 19 | E70: Number of incidents by size and estimated clearance and disposal | F70: I1901 | G70: Transit van load | H70: 2
A71: 27 | B71: Hastings Borough Council | C71: 313 | D71: Nov 19 | E71: Number of incidents by size and estimated clearance and disposal | F71: I1902 | G71: Transit van load - cost per incident | H71: 115
A72: 27 | B72: Hastings Borough Council | C72: 314 | D72: Dec 19 | E72: Number and estimated cost of actions taken this period | F72: A0101 | G72: Investigation | H72: 3
A73: 27 | B73: Hastings Borough Council | C73: 314 | D73: Dec 19 | E73: Number and estimated cost of actions taken this period | F73: A0102 | G73: Investigation - cost per incident | H73: 33
A74: 27 | B74: Hastings Borough Council | C74: 314 | D74: Dec 19 | E74: Number and estimated cost of actions taken this period | F74: A0202 | G74: Warning letter - cost per incident | H74: 33
A75: 27 | B75: Hastings Borough Council | C75: 314 | D75: Dec 19 | E75: Number and estimated cost of actions taken this period | F75: A0302 | G75: Statutory notice - cost per incident | H75: 33
A76: 27 | B76: Hastings Borough Council | C76: 314 | D76: Dec 19 | E76: Number and estimated cost of actions taken this period | F76: A0402 | G76: Fixed penalty notice - cost per incident | H76: 33
A77: 27 | B77: Hastings Borough Council | C77: 314 | D77: Dec 19 | E77: Number and estimated cost of actions taken this period | F77: A0502 | G77: Duty of care inspection - cost per incident | H77: 33
A78: 27 | B78: Hastings Borough Council | C78: 314 | D78: Dec 19 | E78: Number and estimated cost of actions taken this period | F78: A0602 | G78: Stop and search - cost per incident | H78: 324
A79: 27 | B79: Hastings Borough Council | C79: 314 | D79: Dec 19 | E79: Number and estimated cost of actions taken this period | F79: A0702 | G79: Vehicles seized - cost per incident | H79: 33
A80: 27 | B80: Hastings Borough Council | C80: 314 | D80: Dec 19 | E80: Number and estimated cost of actions taken this period | F80: A0802 | G80: Formal Caution - cost per incident | H80: 33
A81: 27 | B81: Hastings Borough Council | C81: 314 | D81: Dec 19 | E81: Number and estimated cost of actions taken this period | F81: A2001 | G81: No actions taken this period | H81: 0
A82: 27 | B82: Hastings Borough Council | C82: 314 | D82: Dec 19 | E82: Number and estimated cost of actions taken this period | F82: A2102 | G82: Fixed penalty notices issued specifically for fly-tipping (s33Za of the Environmental Protection Act 1990) - cost per incident | H82: 33
A83: 27 | B83: Hastings Borough Council | C83: 314 | D83: Dec 19 | E83: Number and estimated cost of actions taken this period | F83: A2202 | G83: Littering fixed penalty notices issued in conjunction with fly-tipping (s88 of the Environmental Protection Act 1990) - cost per incident | H83: 33
A84: 27 | B84: Hastings Borough Council | C84: 314 | D84: Dec 19 | E84: Number and estimated cost of actions taken this period | F84: A2302 | G84: All other fixed penalty notices issued - cost per incident | H84: 33
A85: 27 | B85: Hastings Borough Council | C85: 314 | D85: Dec 19 | E85: Number and estimated cost of actions taken this period | F85: A2402 | G85: Fixed Penalty Notices issued for Household Duty of Care - cost per incident | H85: 33
A86: 27 | B86: Hastings Borough Council | C86: 314 | D86: Dec 19 | E86: Please select the description that best describes the coverage of your reporting of Fly tipping incidents and actions: | F86: G0101 | G86: General | H86: 1
A87: 27 | B87: Hastings Borough Council | C87: 314 | D87: Dec 19 | E87: Total incidents | F87: I0101 | G87: Total number of incidents this period | H87: 72
A88: 27 | B88: Hastings Borough Council | C88: 314 | D88: Dec 19 | E88: Number of incidents by land type | F88: I0201 | G88: Highway | H88: 72
A89: 27 | B89: Hastings Borough Council | C89: 314 | D89: Dec 19 | E89: Number of incidents by primary waste type | F89: I0702 | G89: Construction / demolition / excavation | H89: 5
A90: 27 | B90: Hastings Borough Council | C90: 314 | D90: Dec 19 | E90: Number of incidents by primary waste type | F90: I0801 | G90: Green | H90: 3
A91: 27 | B91: Hastings Borough Council | C91: 314 | D91: Dec 19 | E91: Number of incidents by primary waste type | F91: I0802 | G91: Black bags - commercial | H91: 2
A92: 27 | B92: Hastings Borough Council | C92: 314 | D92: Dec 19 | E92: Number of incidents by primary waste type | F92: I1001 | G92: White goods | H92: 12
A93: 27 | B93: Hastings Borough Council | C93: 314 | D93: Dec 19 | E93: Number of incidents by primary waste type | F93: I1101 | G93: Other electrical | H93: 13
A94: 27 | B94: Hastings Borough Council | C94: 314 | D94: Dec 19 | E94: Number of incidents by primary waste type | F94: I1102 | G94: Other household waste | H94: 30
A95: 27 | B95: Hastings Borough Council | C95: 314 | D95: Dec 19 | E95: Number of incidents by primary waste type | F95: I1202 | G95: Other commercial waste | H95: 7
A96: 27 | B96: Hastings Borough Council | C96: 314 | D96: Dec 19 | E96: Number of incidents by size and estimated clearance and disposal | F96: I1502 | G96: Single black bag - cost per incident | H96: 7
A97: 27 | B97: Hastings Borough Council | C97: 314 | D97: Dec 19 | E97: Number of incidents by size and estimated clearance and disposal | F97: I1601 | G97: Other single item | H97: 32
A98: 27 | B98: Hastings Borough Council | C98: 314 | D98: Dec 19 | E98: Number of incidents by size and estimated clearance and disposal | F98: I1602 | G98: Other single item - cost per incident | H98: 29
A99: 27 | B99: Hastings Borough Council | C99: 314 | D99: Dec 19 | E99: Number of incidents by size and estimated clearance and disposal | F99: I1701 | G99: Car boot load or less | H99: 7
A100: 27 | B100: Hastings Borough Council | C100: 314 | D100: Dec 19 | E100: Number of incidents by size and estimated clearance and disposal | F100: I1702 | G100: Car boot load or less - cost per incident | H100: 29
A101: 27 | B101: Hastings Borough Council | C101: 314 | D101: Dec 19 | E101: Number of incidents by size and estimated clearance and disposal | F101: I1801 | G101: Small van load | H101: 27
A102: 27 | B102: Hastings Borough Council | C102: 314 | D102: Dec 19 | E102: Number of incidents by size and estimated clearance and disposal | F102: I1802 | G102: Small van load - cost per incident | H102: 56
A103: 27 | B103: Hastings Borough Council | C103: 314 | D103: Dec 19 | E103: Number of incidents by size and estimated clearance and disposal | F103: I1901 | G103: Transit van load | H103: 6
A104: 27 | B104: Hastings Borough Council | C104: 314 | D104: Dec 19 | E104: Number of incidents by size and estimated clearance and disposal | F104: I1902 | G104: Transit van load - cost per incident | H104: 115

Sheet Look-up (hidden)
B2: Period ID | C2: Period | D2: Quarter
B3: 1 | C3: Jul 2003 | D3: Jul 03 - Sep 03
B4: 2 | C4: Aug 2003 | D4: Jul 03 - Sep 03
B5: 3 | C5: Sep 2003 | D5: Jul 03 - Sep 03
B6: 4 | C6: Oct 2003 | D6: Oct 03 - Dec 03
B7: 5 | C7: Nov 2003 | D7: Oct 03 - Dec 03
B8: 6 | C8: Dec 2003 | D8: Oct 03 - Dec 03
B9: 7 | C9: Jan 2004 | D9: Jan 04 - Mar 04
B10: 8 | C10: Feb 2004 | D10: Jan 04 - Mar 04
B11: 9 | C11: Mar 2004 | D11: Jan 04 - Mar 04
B12: 10 | C12: Apr 2004 | D12: Apr 04 - Jun 04
B13: 11 | C13: May 2004 | D13: Apr 04 - Jun 04
B14: 12 | C14: Jun 2004 | D14: Apr 04 - Jun 04
B15: 13 | C15: Jul 2004 | D15: Jul 04 - Sep 04
B16: 14 | C16: Aug 2004 | D16: Jul 04 - Sep 04
B17: 15 | C17: Sep 2004 | D17: Jul 04 - Sep 04
B18: 16 | C18: Oct 2004 | D18: Oct 04 - Dec 04
B19: 17 | C19: Nov 2004 | D19: Oct 04 - Dec 04
B20: 18 | C20: Dec 2004 | D20: Oct 04 - Dec 04
B21: 19 | C21: Jan 2005 | D21: Jan 05 - Mar 05
B22: 20 | C22: Feb 2005 | D22: Jan 05 - Mar 05
B23: 21 | C23: Mar 2005 | D23: Jan 05 - Mar 05
B24: 22 | C24: Apr 2005 | D24: Apr 05 - Jun 05
B25: 23 | C25: May 2005 | D25: Apr 05 - Jun 05
B26: 24 | C26: Jun 2005 | D26: Apr 05 - Jun 05
B27: 25 | C27: Jul 2005 | D27: Jul 05 - Sep 05
B28: 26 | C28: Aug 2005 | D28: Jul 05 - Sep 05
B29: 27 | C29: Sep 2005 | D29: Jul 05 - Sep 05
B30: 28 | C30: Oct 2005 | D30: Oct 05 - Dec 05
B31: 29 | C31: Nov 2005 | D31: Oct 05 - Dec 05
B32: 30 | C32: Dec 2005 | D32: Oct 05 - Dec 05
B33: 31 | C33: Jul 03 - Sep 03 | D33: Jul 03 - Sep 03
B34: 32 | C34: Oct 03 - Dec 03 | D34: Oct 03 - Dec 03
B35: 33 | C35: Jan 04 - Mar 04 | D35: Jan 04 - Mar 04
B36: 34 | C36: Apr 04 - Jun 04 | D36: Apr 04 - Jun 04
B37: 35 | C37: Jul 04 - Sep 04 | D37: Jul 04 - Sep 04
B38: 36 | C38: Oct 04 - Dec 04 | D38: Oct 04 - Dec 04
B39: 37 | C39: Jan 05 - Mar 05 | D39: Jan 05 - Mar 05
B40: 38 | C40: Apr 05 - Jun 05 | D40: Apr 05 - Jun 05
B41: 39 | C41: Jul 05 - Sep 05 | D41: Jul 05 - Sep 05
B42: 40 | C42: Oct 05 - Dec 05 | D42: Oct 05 - Dec 05
B43: 41 | C43: Apr 03 - Mar 04 | D43: Annual period
B44: 42 | C44: Apr 04 - Mar 05 | D44: Annual period
B45: 43 | C45: Jan 03 - Dec 03 | D45: Annual period
B46: 44 | C46: Jan 04 - Dec 04 | D46: Annual period
B47: 45 | C47: Jan 05 - Dec 05 | D47: Annual period
B48: 46 | C48: Jan 2003 | D48: Jan 03 - Mar 03
B49: 47 | C49: Feb 2003 | D49: Jan 03 - Mar 03
B50: 48 | C50: Mar 2003 | D50: Jan 03 - Mar 03
B51: 49 | C51: Jan 03 - Mar 03 | D51: Jan 03 - Mar 03
B52: 50 | C52: Apr 2003 | D52: Apr 03 - Jun 03
B53: 51 | C53: May 2003 | D53: Apr 03 - Jun 03
B54: 52 | C54: Jun 2003 | D54: Apr 03 - Jun 03
B55: 53 | C55: Apr 03 - Jun 03 | D55: Apr 03 - Jun 03
B56: 54 | C56: Jan 2002 | D56: Jan 02 - Mar 02
B57: 55 | C57: Feb 2002 | D57: Jan 02 - Mar 02
B58: 56 | C58: Mar 2002 | D58: Jan 02 - Mar 02
B59: 57 | C59: Jan 02 - Mar 02 | D59: Jan 02 - Mar 02
B60: 58 | C60: Apr 2002 | D60: Apr 02 - Jun 02
B61: 59 | C61: May 2002 | D61: Apr 02 - Jun 02
B62: 60 | C62: Jun 2002 | D62: Apr 02 - Jun 02
B63: 61 | C63: Apr 02 - Jun 02 | D63: Apr 02 - Jun 02
B64: 62 | C64: Jul 2002 | D64: Jul 02 - Sep 02
B65: 63 | C65: Aug 2002 | D65: Jul 02 - Sep 02
B66: 64 | C66: Sep 2002 | D66: Jul 02 - Sep 02
B67: 65 | C67: Jul 02 - Sep 02 | D67: Jul 02 - Sep 02
B68: 66 | C68: Oct 2002 | D68: Oct 02 - Dec 02
B69: 67 | C69: Nov 2002 | D69: Oct 02 - Dec 02
B70: 68 | C70: Dec 2002 | D70: Oct 02 - Dec 02
B71: 69 | C71: Oct 02 - Dec 02 | D71: Oct 02 - Dec 02
B72: 70 | C72: Apr 02 - Mar 03 | D72: Annual period
B73: 71 | C73: Jan 06 - Mar 06 | D73: Jan 06 - Mar 06
B74: 72 | C74: Jan 2006 | D74: Jan 06 - Mar 06
B75: 73 | C75: Feb 2006 | D75: Jan 06 - Mar 06
B76: 74 | C76: Mar 2006 | D76: Jan 06 - Mar 06
B77: 75 | C77: Apr 06 - Jun 06 | D77: Apr 06 - Jun 06
B78: 76 | C78: Apr 2006 | D78: Apr 06 - Jun 06
B79: 77 | C79: May 2006 | D79: Apr 06 - Jun 06
B80: 78 | C80: Jun 2006 | D80: Apr 06 - Jun 06
B81: 79 | C81: Jul 06 - Sep 06 | D81: Jul 06 - Sep 06
B82: 80 | C82: Jul 2006 | D82: Jul 06 - Sep 06
B83: 81 | C83: Aug 2006 | D83: Jul 06 - Sep 06
B84: 82 | C84: Sep 2006 | D84: Jul 06 - Sep 06
B85: 83 | C85: Oct 06 - Dec 06 | D85: Oct 06 - Dec 06
B86: 84 | C86: Oct 2006 | D86: Oct 06 - Dec 06
B87: 85 | C87: Nov 2006 | D87: Oct 06 - Dec 06
B88: 86 | C88: Dec 2006 | D88: Oct 06 - Dec 06
B89: 87 | C89: Jan 06 - Dec 06 | D89: Annual period
B90: 88 | C90: Apr 05 - Mar 06 | D90: Annual period
B91: 89 | C91: Apr 06 - Mar07 | D91: Annual period
B92: 90 | C92: Jan 2007 | D92: Jan 07 - Mar 07
B93: 91 | C93: Feb 2007 | D93: Jan 07 - Mar 07
B94: 92 | C94: Mar 2007 | D94: Jan 07 - Mar 07
B95: 93 | C95: Jan 07 - Mar 07 | D95: Jan 07 - Mar 07
B96: 94 | C96: Apr 07 - Jun 07 | D96: Apr 07 - Jun 07
B97: 95 | C97: Apr 2007 | D97: Apr 07 - Jun 07
B98: 96 | C98: May 2007 | D98: Apr 07 - Jun 07
B99: 97 | C99: Jun 2007 | D99: Apr 07 - Jun 07
B100: 98 | C100: Jul 07 - Sep 07 | D100: Jul 07 - Sep 07
B101: 99 | C101: Jul 2007 | D101: Jul 07 - Sep 07
B102: 100 | C102: Aug 2007 | D102: Jul 07 - Sep 07
B103: 101 | C103: Sep 2007 | D103: Jul 07 - Sep 07
B104: 102 | C104: Oct 07 - Dec 07 | D104: Oct 07 - Dec 07
B105: 103 | C105: Oct 2007 | D105: Oct 07 - Dec 07
B106: 104 | C106: Nov 2007 | D106: Oct 07 - Dec 07
B107: 105 | C107: Dec 2007 | D107: Oct 07 - Dec 07
B108: 106 | C108: Jan 08 - Mar 08 | D108: Jan 08 - Mar 08
B109: 107 | C109: Jan 2008 | D109: Jan 08 - Mar 08
B110: 108 | C110: Feb 2008 | D110: Jan 08 - Mar 08
B111: 109 | C111: Mar 2008 | D111: Jan 08 - Mar 08
B112: 110 | C112: Apr 08 - Jun 08 | D112: Apr 08 - Jun 08
B113: 111 | C113: Apr 2008 | D113: Apr 08 - Jun 08
B114: 112 | C114: May 2008 | D114: Apr 08 - Jun 08
B115: 113 | C115: Jun 2008 | D115: Apr 08 - Jun 08
B116: 114 | C116: Jul 08 - Sep 08 | D116: Jul 08 - Sep 08
B117: 115 | C117: Jul 2008 | D117: Jul 08 - Sep 08
B118: 116 | C118: Aug 2008 | D118: Jul 08 - Sep 08
B119: 117 | C119: Sep 2008 | D119: Jul 08 - Sep 08
B120: 118 | C120: Apr 07 - Mar 08 | D120: Annual period
B121: 119 | C121: Oct 2008 | D121: Oct 08 - Dec 08
B122: 120 | C122: Nov 2008 | D122: Oct 08 - Dec 08
B123: 121 | C123: Dec 2008 | D123: Oct 08 - Dec 08
B124: 122 | C124: Oct 08 - Dec 08 | D124: Oct 08 - Dec 08
B125: 123 | C125: Jan 2009 | D125: Jan 09 - Mar 09
B126: 124 | C126: Feb 2009 | D126: Jan 09 - Mar 09
B127: 125 | C127: Mar 2009 | D127: Jan 09 - Mar 09
B128: 126 | C128: Jan 09 - Mar 09 | D128: Jan 09 - Mar 09
B129: 127 | C129: Apr 08 - Mar 09 | D129: Annual period
B130: 128 | C130: Apr 2009 | D130: Apr 09 - Jun 09
B131: 129 | C131: May 2009 | D131: Apr 09 - Jun 09
B132: 130 | C132: Jun 2009 | D132: Apr 09 - Jun 09
B133: 131 | C133: Apr 09 - Jun 09 | D133: Apr 09 - Jun 09
B134: 132 | C134: Jul 2009 | D134: Jul 09 - Sep 09
B135: 133 | C135: Aug 2009 | D135: Jul 09 - Sep 09
B136: 134 | C136: Sep 2009 | D136: Jul 09 - Sep 09
B137: 135 | C137: Jul 09 - Sep 09 | D137: Jul 09 - Sep 09
B138: 136 | C138: Oct 2009 | D138: Oct 09 - Dec 09
B139: 137 | C139: Nov 2009 | D139: Oct 09 - Dec 09
B140: 138 | C140: Dec 2009 | D140: Oct 09 - Dec 09
B141: 139 | C141: Oct 09 - Dec 09 | D141: Oct 09 - Dec 09
B142: 140 | C142: Jan 2010 | D142: Jan 10 - Mar 10
B143: 141 | C143: Feb 2010 | D143: Jan 10 - Mar 10
B144: 142 | C144: Mar 2010 | D144: Jan 10 - Mar 10
B145: 143 | C145: Jan 10 - Mar 10 | D145: Jan 10 - Mar 10
B146: 144 | C146: Apr 09 - Mar 10 | D146: Annual period
B147: 145 | C147: Apr 2010 | D147: Apr 10 - Jun 10
B148: 146 | C148: May 2010 | D148: Apr 10 - Jun 10
B149: 147 | C149: Jun 2010 | D149: Apr 10 - Jun 10
B150: 148 | C150: Apr 10 - Jun 10 | D150: Apr 10 - Jun 10
B151: 149 | C151: Jul 2010 | D151: Jul 10 - Sep 10
B152: 150 | C152: Aug 2010 | D152: Jul 10 - Sep 10
B153: 151 | C153: Sep 2010 | D153: Jul 10 - Sep 10
B154: 152 | C154: Jul 10 - Sep 10 | D154: Jul 10 - Sep 10
B155: 153 | C155: Oct 2010 | D155: Oct 10 - Dec 10
B156: 154 | C156: Nov 2010 | D156: Oct 10 - Dec 10
B157: 155 | C157: Dec 2010 | D157: Oct 10 - Dec 10
B158: 156 | C158: Oct 10 - Dec 10 | D158: Oct 10 - Dec 10
B159: 157 | C159: Jan 2011 | D159: Jan 11 - Mar 11
B160: 158 | C160: Feb 2011 | D160: Jan 11 - Mar 11
B161: 159 | C161: Mar 2011 | D161: Jan 11 - Mar 11
B162: 160 | C162: Jan 11 - Mar 11 | D162: Jan 11 - Mar 11
B163: 161 | C163: Apr 10 - Mar 11 | D163: Annual period
B164: 162 | C164: Apr 2011 | D164: Apr 11 - Jun 11
B165: 163 | C165: May 2011 | D165: Apr 11 - Jun 11
B166: 164 | C166: Jun 2011 | D166: Apr 11 - Jun 11
B167: 165 | C167: Apr 11 - Jun 11 | D167: Apr 11 - Jun 11
B168: 166 | C168: Jul 2011 | D168: Jul 11 - Sep 11
B169: 167 | C169: Aug 2011 | D169: Jul 11 - Sep 11
B170: 168 | C170: Sep 2011 | D170: Jul 11 - Sep 11
B171: 169 | C171: Jul 11 - Sep 11 | D171: Jul 11 - Sep 11
B172: 170 | C172: Oct 2011 | D172: Oct 11 - Dec 11
B173: 171 | C173: Nov 2011 | D173: Oct 11 - Dec 11
B174: 172 | C174: Dec 2011 | D174: Oct 11 - Dec 11
B175: 173 | C175: Oct 11 - Dec 11 | D175: Oct 11 - Dec 11
B176: 174 | C176: Jan 2012 | D176: Jan 12 - Mar 12
B177: 175 | C177: Feb 2012 | D177: Jan 12 - Mar 12
B178: 176 | C178: Mar 2012 | D178: Jan 12 - Mar 12
B179: 177 | C179: Jan 12 - Mar 12 | D179: Jan 12 - Mar 12
B180: 178 | C180: Apr 11 - Mar 12 | D180: Annual period
B181: 179 | C181: Apr 2012 | D181: Apr 12 - Jun 12
B182: 180 | C182: May 2012 | D182: Apr 12 - Jun 12
B183: 181 | C183: Jun 2012 | D183: Apr 12 - Jun 12
B184: 182 | C184: Apr 12 - Jun 12 | D184: Apr 12 - Jun 12
B185: 183 | C185: Jul 2012 | D185: Jul 12 - Sep 12
B186: 184 | C186: Aug 2012 | D186: Jul 12 - Sep 12
B187: 185 | C187: Sep 2012 | D187: Jul 12 - Sep 12
B188: 186 | C188: Jul 12 - Sep 12 | D188: Jul 12 - Sep 12
B189: 187 | C189: Oct 2012 | D189: Oct 12 - Dec 12
B190: 188 | C190: Nov 2012 | D190: Oct 12 - Dec 12
B191: 189 | C191: Dec 2012 | D191: Oct 12 - Dec 12
B192: 190 | C192: Oct 12 - Dec 12 | D192: Oct 12 - Dec 12
B193: 191 | C193: Jan 2013 | D193: Jan 13 - Mar 13
B194: 192 | C194: Feb 2013 | D194: Jan 13 - Mar 13
B195: 193 | C195: Mar 2013 | D195: Jan 13 - Mar 13
B196: 194 | C196: Jan 13 - Mar 13 | D196: Jan 13 - Mar 13
B197: 195 | C197: Apr 12 - Mar 13 | D197: Annual period
B198: 196 | C198: Apr 2013 | D198: Apr 13 - Jun 13
B199: 197 | C199: May 2013 | D199: Apr 13 - Jun 13
B200: 198 | C200: Jun 2013 | D200: Apr 13 - Jun 13
B201: 199 | C201: Apr 13 - Jun 13 | D201: Apr 13 - Jun 13
... 158 more rows

Sheet Comments
A1: Period | B1: (I)ncident or (A)ction | C1: Comment
